fUSD/lending_fUSD_20240729
["ID","MTS","AMOUNT","RATE_DAILY","PERIOD"]
[333585926,1722259837337,-865.4228852,0.00010687,2]
[333585927,1722259837347,-383.95784046,0.00010687,2]
[333585928,1722259837356,-150.0,0.00010687,2]
[333585929,1722259837365,-150.0,0.00010688,2]
[333585930,1722259837374,-865.4228852,0.00010698,2]
[333585932,1722259837383,-383.95784046,0.00010698,2]
[333585933,1722259837392,-5136.9101,0.00010699,2]
[333585935,1722259837404,-33000.0,0.000107,2]
[333585936,1722259837413,-400.0,0.000107,3]
[333585937,1722259837422,-255.4697,0.000107,2]
[333585938,1722259837431,-150.0,0.00010704,2]
[333585939,1722259837439,-865.4228852,0.00010709,2]
[333585940,1722259837451,-383.95784046,0.00010709,2]
[333585941,1722259837461,-150.0,0.00010712,2]
[333585942,1722259837470,-150.0,0.00010719,2]
[333585943,1722259837479,-865.4228852,0.0001072,2]
[333585944,1722259837489,-383.95784046,0.0001072,2]
[333585945,1722259837501,-865.4228852,0.00010731,2]
[333585946,1722259837510,-383.95784046,0.00010731,2]
[333585947,1722259837519,-150.0,0.00010735,2]
[333585948,1722259837530,-865.4228852,0.00010742,2]
[333585949,1722259837539,-383.95784046,0.00010742,2]
[333585950,1722259837548,-150.0,0.00010751,2]
[333585951,1722259837557,-865.4228852,0.00010753,2]
[333585952,1722259837566,-383.95784046,0.00010753,2]
[333585953,1722259837575,-865.4228852,0.00010764,2]
[333585954,1722259837584,-383.95784046,0.00010764,2]
[333585955,1722259837593,-150.0,0.00010767,2]
[333585956,1722259837603,-150.0,0.00010767,2]
[333585957,1722259837613,-150.0,0.00010767,2]
[333585958,1722259837623,-865.4228852,0.00010775,2]
[333585959,1722259837632,-383.95784046,0.00010775,2]
[333585960,1722259837641,-150.0,0.00010782,2]
[333585961,1722259837655,-865.4228852,0.00010787,2]
[333585962,1722259837664,-383.95784046,0.00010787,2]
[333585963,1722259837674,-150.0,0.00010787,2]
[333585964,1722259837683,-865.4228852,0.00010798,2]
[333585965,1722259837692,-383.95784046,0.00010798,2]
[333585966,1722259837703,-150.0,0.00010798,2]
[333585967,1722259837713,-3209.7081172,0.00010799,2]
[333585968,1722259837722,-3985.64233519,0.000108,2]
[333585970,1722259839326,-150.0,0.00010418,2]
[333585971,1722259839335,-150.0,0.00010437,2]
[333585972,1722259839345,-150.0,0.00010456,2]
[333585973,1722259839354,-150.0,0.00010475,2]
[333585974,1722259839363,-150.0,0.00010494,2]
[333585975,1722259839372,-150.0,0.00010513,2]
[333585976,1722259839381,-150.0,0.00010532,2]
[333585977,1722259839391,-150.0,0.00010551,2]
[333585978,1722259839400,-150.0,0.0001057,2]
[333585979,1722259839413,-150.0,0.00010589,2]
[333585980,1722259839422,-145.33218304,0.00010607,2]
[333585981,1722259839913,-4.66781696,0.00010607,2]
[333585982,1722259839923,-150.0,0.00010626,2]
[333585983,1722259839932,-99.10538384,0.00010645,2]
[333585984,1722259839966,-50.89461616,0.00010645,2]
[333585985,1722259839975,-150.0,0.00010664,2]
[333585986,1722259840159,-121.66690778,0.000108,2]
[333585988,1722259840321,-500.0,0.000108,2]
[333585989,1722259840333,-2065.65150704,0.000108,2]
[333585990,1722259840345,-250.93490603,0.000108,2]
[333585991,1722259840356,-1392.47038,0.000108,2]
[333585997,1722259842672,-150.0,0.00010683,2]
[333585998,1722259842682,-119127.81809008,0.000108,2]
[333585999,1722259842692,-750.0,0.000108,3]
[333586000,1722259842701,-150.0,0.00010803,2]
[333586001,1722259842711,-865.4228852,0.00010809,2]
[333586002,1722259842720,-383.95784046,0.00010809,2]
[333586003,1722259842730,-150.0,0.00010814,2]
[333586004,1722259842740,-865.4228852,0.0001082,2]
[333586005,1722259842749,-383.95784046,0.0001082,2]
[333586006,1722259842758,-150.0,0.00010829,2]
[333586007,1722259842768,-865.4228852,0.00010831,2]
[333586008,1722259842777,-383.95784046,0.00010831,2]
[333586009,1722259842787,-865.4228852,0.00010842,2]
[333586010,1722259842796,-383.95784046,0.00010842,2]
[333586011,1722259842805,-150.0,0.00010845,2]
[333586012,1722259842815,-865.4228852,0.00010853,2]
[333586013,1722259842824,-383.95784046,0.00010853,2]
[333586014,1722259842833,-150.0,0.00010861,2]
[333586015,1722259842843,-865.4228852,0.00010864,2]
[333586016,1722259842852,-383.95784046,0.00010864,2]
[333586017,1722259842861,-865.4228852,0.00010875,2]
[333586018,1722259842870,-383.95784046,0.00010875,2]
[333586019,1722259842879,-150.0,0.00010876,2]
[333586020,1722259842888,-2003.98196714,0.00010877,2]
[333586021,1722259842898,-588307.01963014,0.0001088,2]
[333586022,1722259842909,-172.86911034,0.0001088,2]
[333586023,1722259842918,-865.4228852,0.00010886,2]
[333586024,1722259842927,-383.95784046,0.00010886,2]
[333586025,1722259842937,-150.0,0.00010886,2]
[333586026,1722259842946,-3000.0,0.0001089,2]
[333586027,1722259842955,-150.0,0.00010892,2]
[333586028,1722259842965,-865.4228852,0.00010898,2]
[333586029,1722259842974,-383.95784046,0.00010898,2]
[333586030,1722259842983,-183.424184,0.00010899,2]
[333586031,1722259842992,-177.69822982,0.00010899,2]
[333586032,1722259843001,-3819.80516291,0.00010899,2]
[333586033,1722259843011,-3819.80516286,0.00010899,2]
[333586035,1722259843020,-3819.80516286,0.00010899,2]
[333586036,1722259843029,-3819.80516286,0.00010899,2]
[333586037,1722259843038,-3819.80516286,0.00010899,2]
[333586038,1722259843047,-3819.80516286,0.00010899,2]
[333586039,1722259843057,-3819.80516286,0.00010899,2]
[333586040,1722259843066,-3819.80516286,0.00010899,2]
[333586041,1722259843075,-3819.80516286,0.00010899,2]
[333586042,1722259843085,-14886.81184361,0.00010899,2]
[333586043,1722259843094,-14886.81184352,0.00010899,2]
[333586044,1722259843104,-14886.81184352,0.00010899,2]
[333586045,1722259843113,-14886.81184352,0.00010899,2]
[333586046,1722259843123,-14886.81184352,0.00010899,2]
[333586047,1722259843132,-14886.81184352,0.00010899,2]
[333586048,1722259843142,-14886.81184352,0.00010899,2]
[333586049,1722259843151,-14886.81184352,0.00010899,2]
[333586050,1722259843163,-14886.81184352,0.00010899,2]
[333586051,1722259843173,-9416.1967,0.000109,2]
[333586052,1722259843183,-59396.9454,0.000109,2]
[333586053,1722259843193,-1000.0,0.000109,2]
[333586054,1722259843203,-6065.4356,0.000109,2]
[333586055,1722259843213,-718.610488,0.000109,2]
[333586056,1722259843222,-486.54905377,0.000109,2]
[333586057,1722259843232,-2303.8238,0.000109,2]
[333586058,1722259843241,-183.42418399,0.000109,2]
[333586059,1722259843250,-1646.78843417,0.000109,2]
[333586060,1722259843259,-3819.80516286,0.000109,2]
[333586061,1722259843268,-14886.81184352,0.000109,2]
[333586062,1722259843277,-159.31017032,0.000109,2]
[333586063,1722259843286,-221.07,0.00010904,3]
[333586064,1722259843296,-150.0,0.00010908,2]
[333586065,1722259843305,-865.4228852,0.00010909,2]
[333586066,1722259843314,-383.95784046,0.00010909,2]
[333586067,1722259843323,-865.4228852,0.0001092,2]
[333586068,1722259843332,-383.95784046,0.0001092,2]
[333586069,1722259843341,-150.0,0.00010924,2]
[333586070,1722259843350,-865.4228852,0.00010931,2]
[333586071,1722259843360,-383.95784046,0.00010931,2]
[333586072,1722259843369,-150.0,0.00010939,2]
[333586073,1722259843378,-865.4228852,0.00010942,2]
[333586074,1722259843387,-383.95784046,0.00010942,2]
[333586075,1722259843396,-865.4228852,0.00010953,2]
[333586076,1722259843405,-383.95784046,0.00010953,2]
[333586077,1722259843416,-150.0,0.00010955,2]
[333586078,1722259843425,-2003.98196714,0.00010955,2]
[333586079,1722259843434,-352.22621495,0.00010958,2]
[333586080,1722259843443,-500.0,0.00010958,2]
[333586081,1722259843456,-500.0,0.00010958,2]
[333586082,1722259843466,-504.65810175,0.00010958,2]
[333586083,1722259843475,-504.80734342,0.00010958,2]
[333586084,1722259843485,-500.0,0.00010958,2]
[333586085,1722259843496,-500.0,0.00010958,2]
[333586086,1722259843506,-500.0,0.00010958,2]
[333586087,1722259843515,-500.0,0.00010958,2]
[333586088,1722259843527,-500.0,0.00010958,2]
[333586089,1722259843536,-500.0,0.00010958,2]
[333586090,1722259843545,-500.0,0.00010958,2]
[333586091,1722259843554,-500.0,0.00010958,2]
[333586092,1722259843564,-472.38472387,0.00010958,2]
[333586093,1722259843573,-500.0,0.00010958,2]
[333586094,1722259843582,-500.0,0.00010958,2]
[333586095,1722259843591,-500.0,0.00010958,2]
[333586096,1722259843601,-500.0,0.00010958,2]
[333586097,1722259843610,-617.62356812,0.00010958,2]
[333586098,1722259843620,-500.0,0.00010958,2]
[333586099,1722259843629,-500.0,0.00010958,2]
[333586100,1722259843639,-439.53655909,0.00010958,2]
[333586101,1722259843648,-534.53835712,0.00010958,2]
[333586102,1722259843659,-500.0,0.00010958,2]
[333586103,1722259843669,-500.0,0.00010958,2]
[333586104,1722259843678,-500.0,0.00010958,2]
[333586105,1722259843688,-500.0,0.00010958,2]
[333586106,1722259843699,-525.60775662,0.00010958,2]
[333586107,1722259843709,-510.17398448,0.00010958,2]
[333586108,1722259843718,-500.0,0.00010958,2]
[333586109,1722259843727,-500.0,0.00010958,2]
[333586110,1722259843737,-523.80999908,0.00010958,2]
[333586111,1722259843746,-533.17699307,0.00010958,2]
[333586112,1722259843756,-536.26019725,0.00010958,2]
[333586113,1722259843766,-500.0,0.00010958,2]
[333586114,1722259843775,-221.46831702,0.00010958,2]
[333586115,1722259843786,-500.0,0.00010958,2]
[333586116,1722259843796,-500.0,0.00010958,2]
[333586117,1722259843805,-500.0,0.00010958,2]
[333586118,1722259843814,-500.0,0.00010958,2]
[333586119,1722259843823,-627.98812592,0.00010958,2]
[333586120,1722259843833,-500.0,0.00010958,2]
[333586121,1722259843842,-623.32123286,0.00010958,2]
[333586122,1722259843851,-290.53266675,0.00010958,2]
[333586123,1722259843860,-500.0,0.00010958,2]
[333586124,1722259843870,-500.0,0.00010958,2]
[333586125,1722259843879,-500.0,0.00010958,2]
[333586126,1722259843888,-500.0,0.00010958,2]
[333586127,1722259843897,-500.0,0.00010958,2]
[333586128,1722259843906,-500.0,0.00010958,2]
[333586129,1722259843916,-500.0,0.00010958,2]
[333586130,1722259843925,-500.0,0.00010958,2]
[333586131,1722259843934,-500.0,0.00010958,2]
[333586132,1722259843943,-500.0,0.00010958,2]
[333586133,1722259843952,-500.0,0.00010958,2]
[333586134,1722259843961,-500.0,0.00010958,2]
[333586135,1722259843971,-500.0,0.00010958,2]
[333586136,1722259843980,-500.0,0.00010958,2]
[333586137,1722259843989,-500.0,0.00010958,2]
[333586138,1722259843999,-500.0,0.00010958,2]
[333586139,1722259844008,-500.0,0.00010958,2]
[333586140,1722259844017,-500.0,0.00010958,2]
[333586141,1722259844026,-500.0,0.00010958,2]
[333586142,1722259844081,-500.0,0.00010958,2]
[333586143,1722259844091,-632.06,0.00010958,2]
[333586144,1722259844100,-632.06,0.00010958,2]
[333586145,1722259844109,-501.4,0.00010958,2]
[333586146,1722259844118,-500.0,0.00010958,2]
[333586147,1722259844126,-500.0,0.00010958,2]
[333586148,1722259844135,-580.84043364,0.00010958,2]
[333586149,1722259844144,-500.0,0.00010958,2]
[333586150,1722259844153,-500.0,0.00010958,2]
[333586151,1722259844164,-500.0,0.00010958,2]
[333586152,1722259844173,-500.0,0.00010958,2]
[333586153,1722259844183,-522.55976457,0.00010958,2]
[333586154,1722259844191,-611.25488216,0.00010958,2]
[333586155,1722259844200,-500.0,0.00010958,2]
[333586156,1722259844209,-248.28998958,0.00010958,2]
[333586157,1722259844218,-523.55094041,0.00010958,2]
[333586158,1722259844228,-500.0,0.00010958,2]
[333586159,1722259844237,-500.0,0.00010958,2]
[333586160,1722259844246,-500.0,0.00010958,2]
[333586161,1722259844255,-500.0,0.00010958,2]
[333586162,1722259844264,-500.0,0.00010958,2]
[333586163,1722259844273,-500.0,0.00010958,2]
[333586164,1722259844283,-172.17015074,0.00010958,2]
[333586165,1722259844293,-500.0,0.00010958,2]
[333586166,1722259844303,-186.12517634,0.00010958,2]
[333586167,1722259844312,-500.0,0.00010958,2]
[333586168,1722259844322,-500.0,0.00010958,2]
[333586169,1722259844333,-500.0,0.00010958,2]
[333586170,1722259844343,-500.0,0.00010958,2]
[333586171,1722259844354,-2011.0,0.00010958,2]
[333586172,1722259844364,-2011.0,0.00010958,2]
[333586173,1722259844375,-500.0,0.00010958,2]
[333586174,1722259844386,-500.0,0.00010958,2]
[333586175,1722259844396,-500.0,0.00010958,2]
[333586176,1722259844407,-500.0,0.00010958,2]
[333586177,1722259844428,-500.0,0.00010958,2]
[333586178,1722259844442,-500.0,0.00010958,2]
[333586179,1722259844456,-500.0,0.00010958,2]
[333586180,1722259844470,-500.0,0.00010958,2]
[333586181,1722259844484,-500.0,0.00010958,2]
[333586182,1722259844495,-500.0,0.00010958,2]
[333586183,1722259844506,-500.0,0.00010958,2]
[333586184,1722259844518,-500.0,0.00010958,2]
[333586185,1722259844529,-1020.71,0.00010958,2]
[333586186,1722259844539,-500.0,0.00010958,2]
[333586187,1722259844552,-1020.71,0.00010958,2]
[333586188,1722259844563,-500.0,0.00010958,2]
[333586189,1722259844574,-500.0,0.00010958,2]
[333586190,1722259844585,-500.0,0.00010958,2]
[333586191,1722259844596,-500.0,0.00010958,2]
[333586192,1722259844607,-500.0,0.00010958,2]
[333586193,1722259844618,-500.0,0.00010958,2]
[333586194,1722259844629,-706.96,0.00010958,2]
[333586195,1722259844641,-706.96,0.00010958,2]
[333586196,1722259844652,-531.35,0.00010958,2]
[333586197,1722259844663,-531.35,0.00010958,2]
[333586198,1722259844674,-501.87665641,0.00010958,2]
[333586199,1722259844685,-500.0,0.00010958,2]
[333586200,1722259844695,-500.0,0.00010958,2]
[333586201,1722259844706,-755.13,0.00010958,2]
[333586202,1722259844717,-755.13,0.00010958,2]
[333586203,1722259844727,-500.0,0.00010958,2]
[333586204,1722259844739,-500.0,0.00010958,2]
[333586205,1722259844749,-565.21,0.00010958,2]
[333586206,1722259844759,-565.21,0.00010958,2]
[333586207,1722259844770,-500.0,0.00010958,2]
[333586208,1722259844780,-500.0,0.00010958,2]
[333586209,1722259844791,-500.0,0.00010958,2]
[333586210,1722259844801,-500.0,0.00010958,2]
[333586211,1722259844811,-500.0,0.00010958,2]
[333586212,1722259844822,-500.0,0.00010958,2]
[333586213,1722259844833,-500.0,0.00010958,2]
[333586214,1722259844844,-500.0,0.00010958,2]
[333586215,1722259844854,-500.0,0.00010958,2]
[333586216,1722259844864,-500.0,0.00010958,2]
[333586217,1722259844874,-500.0,0.00010958,2]
[333586218,1722259844885,-500.0,0.00010958,2]
[333586219,1722259844895,-500.0,0.00010958,2]
[333586220,1722259844905,-218.59,0.00010958,2]
[333586221,1722259844929,-3162.84,0.00010958,2]
[333586222,1722259844940,-500.0,0.00010958,2]
[333586223,1722259844950,-3162.84,0.00010958,2]
[333586224,1722259844961,-500.0,0.00010958,2]
[333586225,1722259844970,-500.0,0.00010958,2]
[333586226,1722259844980,-500.0,0.00010958,2]
[333586227,1722259844990,-500.0,0.00010958,2]
[333586228,1722259844999,-500.0,0.00010958,2]
[333586229,1722259845009,-500.0,0.00010958,2]
[333586230,1722259845019,-500.0,0.00010958,2]
[333586231,1722259845028,-500.0,0.00010958,2]
[333586232,1722259845037,-500.0,0.00010958,2]
[333586233,1722259845046,-500.0,0.00010958,2]
[333586234,1722259845055,-500.0,0.00010958,2]
[333586235,1722259845065,-500.0,0.00010958,2]
[333586236,1722259845074,-500.0,0.00010958,2]
[333586237,1722259845083,-500.0,0.00010958,2]
[333586238,1722259845093,-500.0,0.00010958,2]
[333586239,1722259845102,-500.0,0.00010958,2]
[333586240,1722259845111,-500.0,0.00010958,2]
[333586241,1722259845120,-500.0,0.00010958,2]
[333586242,1722259845130,-500.0,0.00010958,2]
[333586243,1722259845139,-500.0,0.00010958,2]
[333586244,1722259845149,-500.0,0.00010958,2]
[333586245,1722259845158,-500.0,0.00010958,2]
[333586246,1722259845168,-500.0,0.00010958,2]
[333586247,1722259845177,-500.0,0.00010958,2]
[333586248,1722259845186,-500.0,0.00010958,2]
[333586249,1722259845196,-634.13449414,0.00010958,2]
[333586250,1722259845206,-642.99,0.00010958,2]
[333586251,1722259845215,-642.99,0.00010958,2]
[333586252,1722259845224,-92173.83368923,0.00010958,2]
[333586253,1722259845234,-500.0,0.00010958,2]
[333586254,1722259845243,-500.0,0.00010958,2]
[333586255,1722259845253,-256.7033336,0.00010958,2]
[333586256,1722259845262,-500.0,0.00010958,2]
[333586257,1722259845271,-500.0,0.00010958,2]
[333586258,1722259845280,-500.0,0.00010958,2]
[333586259,1722259845290,-500.0,0.00010958,2]
[333586260,1722259845299,-500.0,0.00010958,2]
[333586261,1722259845309,-413.02528226,0.00010958,2]
[333586262,1722259845318,-500.0,0.00010958,2]
[333586263,1722259845327,-500.0,0.00010958,2]
[333586264,1722259845336,-500.0,0.00010958,2]
[333586265,1722259845345,-500.0,0.00010958,2]
[333586266,1722259845355,-500.0,0.00010958,2]
[333586267,1722259845364,-500.0,0.00010958,2]
[333586269,1722259845374,-500.0,0.00010958,2]
[333586270,1722259845383,-474.7173527,0.00010958,2]
[333586272,1722259845393,-500.0,0.00010958,2]
[333586274,1722259845402,-500.0,0.00010958,2]
[333586275,1722259845417,-502.19998068,0.00010958,2]
[333586276,1722259845431,-525.29629853,0.00010958,2]
[333586277,1722259845440,-504.88162351,0.00010958,2]
[333586278,1722259845451,-500.0,0.00010958,2]
[333586279,1722259845462,-500.0,0.00010958,2]
[333586281,1722259845471,-500.0,0.00010958,2]
[333586282,1722259845481,-500.0,0.00010958,2]
[333586283,1722259845490,-500.0,0.00010958,2]
[333586284,1722259845500,-500.0,0.00010958,2]
[333586285,1722259845509,-500.0,0.00010958,2]
[333586286,1722259845519,-500.0,0.00010958,2]
[333586287,1722259845529,-500.0,0.00010958,2]
[333586288,1722259845539,-546.80430774,0.00010958,2]
[333586289,1722259845549,-500.0,0.00010958,2]
[333586290,1722259845559,-500.0,0.00010958,2]
[333586291,1722259845568,-500.0,0.00010958,2]
[333586292,1722259845577,-500.0,0.00010958,2]
[333586295,1722259845597,-500.0,0.00010958,2]
[333586297,1722259845607,-500.0,0.00010958,2]
[333586299,1722259845618,-500.0,0.00010958,2]
[333586301,1722259845628,-503.16672068,0.00010958,2]
[333586303,1722259845638,-601.6,0.00010958,2]
[333586305,1722259845648,-601.6,0.00010958,2]
[333586307,1722259845658,-505.00799956,0.00010958,2]
[333586309,1722259845676,-500.0,0.00010958,2]
[333586311,1722259845686,-500.0,0.00010958,2]
[333586313,1722259845695,-500.0,0.00010958,2]
[333586315,1722259845705,-478.90652159,0.00010958,2]
[333586317,1722259845715,-500.0,0.00010958,2]
[333586319,1722259845725,-506.82711426,0.00010958,2]
[333586320,1722259845735,-500.0,0.00010958,2]
[333586321,1722259845745,-447.97239449,0.00010958,2]
[333586322,1722259845755,-500.0,0.00010958,2]
[333586323,1722259845764,-500.0,0.00010958,2]
[333586324,1722259845774,-500.0,0.00010958,2]
[333586325,1722259845784,-571.78175414,0.00010958,2]
[333586326,1722259845794,-500.0,0.00010958,2]
[333586327,1722259845804,-500.0,0.00010958,2]
[333586328,1722259845813,-613.24883195,0.00010958,2]
[333586329,1722259845823,-500.0,0.00010958,2]
[333586330,1722259845833,-250.0,0.00010959,2]
[333586331,1722259845842,-150.0,0.00010959,2]
[333586332,1722259845852,-167.56,0.00010959,2]
[333586333,1722259845862,-865.4228852,0.00010964,2]
[333586334,1722259845871,-383.95784046,0.00010964,2]
[333586335,1722259845881,-150.0,0.00010971,2]
[333586336,1722259845891,-865.4228852,0.00010975,2]
[333586337,1722259845900,-383.95784046,0.00010975,2]
[333586338,1722259845915,-865.4228852,0.00010986,2]
[333586339,1722259845925,-242.31678765,0.00010986,2]
[333586340,1722259845934,-167.07874594,0.00010986,2]
[333586341,1722259845945,-383.95784046,0.00010986,2]
[333586342,1722259845954,-271.86073686,0.00010986,2]
[333586343,1722259845963,-189.22229318,0.00010986,2]
[333586344,1722259845973,-186.23574484,0.00010986,2]
[333586345,1722259845982,-251.35689131,0.00010986,2]
[333586346,1722259845992,-216.13215913,0.00010986,2]
[333586347,1722259846001,-500.0,0.00010988,2]
[333586348,1722259846011,-500.0,0.00010988,2]
[333586349,1722259846021,-500.0,0.00010988,2]
[333586350,1722259846030,-500.0,0.00010988,2]
[333586351,1722259846040,-146867.44839438,0.00010989,2]
[333586352,1722259846071,-265.9966997,0.00010958,2]
[333586353,1722259846082,-234.0033003,0.00010958,2]
[333586354,1722259846092,-402.49273912,0.00010989,2]
[333586355,1722259846110,-299.14302771,0.00010989,2]
[333586356,1722259846297,-150.0,0.00010702,2]
[333586357,1722259846307,-150.0,0.00010721,2]
[333586358,1722259846316,-500.0,0.00010958,2]
[333586359,1722259846326,-500.0,0.00010958,2]
[333586360,1722259846336,-500.0,0.00010958,2]
[333586361,1722259846345,-500.0,0.00010958,2]
[333586362,1722259846355,-500.0,0.00010958,2]
[333586363,1722259846365,-637.58872776,0.00010958,2]
[333586364,1722259846375,-500.0,0.00010958,2]
[333586366,1722259846384,-497.57638951,0.00010958,2]
[333586367,1722259846394,-506.66584299,0.00010958,2]
[333586368,1722259846403,-2061.46903974,0.00010989,2]
[333586369,1722259846471,-552.86,0.00010989,2]
[333586370,1722259846499,-3492.393,0.00010989,2]
[333586373,1722259849933,-188960.57013768,0.00010989,2]
[333586374,1722259849943,-500.0,0.00010989,2]
[333586375,1722259849952,-500.0,0.00010989,2]
[333586376,1722259849961,-8851.35155642,0.0001099,6]
[333586379,1722259917543,2000.0,0.00020505,120]
[333586391,1722260014979,151.81,0.00020505,120]
[333586401,1722260420760,3500.0,0.000205,120]
[333586403,1722260493179,-990.90845593,7.516e-05,2]
[333586404,1722260493201,-1000.0,9.323e-05,2]
[333586405,1722260493222,-887.35649619,9.323e-05,2]
[333586406,1722260493244,-181.44,9.576e-05,2]
[333586407,1722260493264,-181.44,9.579e-05,2]
[333586408,1722260493286,-300.0,9.579e-05,2]
[333586409,1722260493307,-300.0,9.579e-05,2]
[333586410,1722260493328,-300.0,9.579e-05,2]
[333586411,1722260493348,-2000.0,9.58e-05,2]
[333586412,1722260493369,-23679.73,9.58e-05,2]
[333586413,1722260493391,-181.44,9.581e-05,2]
[333586414,1722260493412,-181.44,9.584e-05,2]
[333586415,1722260493434,-181.44,9.586e-05,2]
[333586416,1722260493455,-181.44,9.589e-05,2]
[333586417,1722260493476,-181.44,9.591e-05,2]
[333586418,1722260493497,-181.44,9.594e-05,2]
[333586419,1722260493518,-181.44,9.596e-05,2]
[333586420,1722260493540,-181.44,9.599e-05,2]
[333586421,1722260493560,-181.44,9.601e-05,2]
[333586422,1722260493581,-181.44,9.604e-05,2]
[333586423,1722260493602,-181.44,9.606e-05,2]
[333586424,1722260493622,-181.44,9.609e-05,2]
[333586425,1722260493644,-181.44,9.612e-05,2]
[333586426,1722260493665,-181.44,9.614e-05,2]
[333586427,1722260493686,-181.44,9.617e-05,2]
[333586428,1722260493710,-181.44,9.619e-05,2]
[333586429,1722260493731,-181.44,9.622e-05,2]
[333586430,1722260493752,-150.0,9.624e-05,2]
[333586431,1722260493773,-181.44,9.624e-05,2]
[333586432,1722260493795,-1350.68,9.67e-05,2]
[333586433,1722260493815,-1612.52504788,9.67e-05,2]
[333586444,1722260820205,5860.8632306,0.00015,30]
[333586445,1722260820368,-160.51,8.219e-05,2]
[333586446,1722260820395,-8679.18,9.602e-05,2]
[333586447,1722260820424,-150.0,9.669e-05,2]
[333586448,1722260820453,-358.32495212,9.67e-05,2]
[333586449,1722260820483,-444.34318014,9.67e-05,2]
[333586450,1722260820510,-1370.0029794,9.67e-05,2]
[333586451,1722260820539,-9262.00526818,9.67e-05,2]
[333586452,1722260820568,-1222.09783378,9.67e-05,2]
[333586453,1722260820599,-150.0,9.888e-05,2]
[333586454,1722260820630,-108.13577496,9.888e-05,2]
[333586455,1722260820866,-160.51,9.888e-05,2]
[333586456,1722260820879,-30.29002284,9.888e-05,2]
[333586457,1722260820889,-150.0,9.888e-05,2]
[333586458,1722260820899,-150.0,9.888e-05,2]
[333586459,1722260820909,-150.0,9.888e-05,2]
[333586460,1722260820918,-150.0,9.888e-05,2]
[333586461,1722260820929,-2044.8298,9.9e-05,2]
[333586462,1722260820938,-6004.06017716,9.9e-05,2]
[333586463,1722260820950,-150.0,9.9e-05,2]
[333586464,1722260820961,-358.32495212,9.9e-05,2]
[333586465,1722260820972,-444.34318014,9.9e-05,2]
[333586466,1722260820990,-657.19519058,9.9e-05,2]
[333586467,1722260820999,-712.80778882,9.9e-05,2]
[333586468,1722260821010,-1969.16951118,9.9e-05,2]
[333586469,1722260821019,-363.3224,9.9e-05,2]
[333586540,1722261027326,500.2785855,0.0002,120]
[333586548,1722261031739,-1344.78568796,8.218e-05,2]
[333586557,1722261031819,-296.21431204,8.218e-05,2]
[333586558,1722261031829,-618.34,8.219e-05,2]
[333586559,1722261031839,-209.76938948,8.219e-05,2]
[333586560,1722261031848,-250.0,9.455e-05,2]
[333586561,1722261031859,-304.54927886,9.626e-05,2]
[333586562,1722261031915,-7.32072114,9.626e-05,2]
[333586563,1722261031925,-200.0,9.644e-05,2]
[333586564,1722261031934,-300.0,9.899e-05,2]
[333586565,1722261031945,-300.0,9.899e-05,2]
[333586566,1722261031955,-2251.7332,9.9e-05,2]
[333586567,1722261031964,-495.14607886,9.9e-05,2]
[333586568,1722261031986,-351.22676146,9.9e-05,2]
[333586569,1722261031998,-389.5000232,9.9e-05,2]
[333586570,1722261032007,-155.0,9.9e-05,2]
[333586571,1722261032017,-9262.00526818,9.9e-05,2]
[333586572,1722261032027,-150.0,9.93e-05,2]
[333586573,1722261032037,-150.0,9.945e-05,2]
[333586574,1722261032046,-499.99,9.96e-05,2]